bitfinex-derivatives/quotes_BTCF0:USTF0_20220103
["timestamp","ask_amount","ask_price","bid_price","bid_amount"]
[1641229016621,0.14033567,46487.0,46486.0,0.192]
[1641229018424,0.14033567,46487.0,46483.0,0.03130829]
[1641229018624,0.14033567,46487.0,46486.0,0.185]
[1641229019926,0.14033567,46487.0,46483.0,0.03130829]
[1641229020625,0.14033567,46487.0,46483.0,0.21730829]
[1641229021826,0.14033567,46487.0,46483.0,0.03130829]
[1641229022630,0.14033567,46487.0,46483.0,0.20851429]
[1641229022830,0.18,46484.0,46483.0,0.187]
[1641229023027,0.25392,46484.0,46483.0,0.187]
[1641229023829,0.25392,46484.0,46475.0,0.59958012]
[1641229024127,0.18,46481.0,46475.0,0.59958012]
[1641229024529,0.18,46476.0,46475.0,0.59958012]
[1641229024729,0.18,46477.0,46475.0,0.79058012]
[1641229024929,0.19874896,46486.0,46475.0,0.79058012]
[1641229025333,0.18,46477.0,46475.0,0.79058012]
[1641229025829,0.18,46482.0,46475.0,0.79058012]
[1641229026029,0.18,46477.0,46475.0,0.59958012]
[1641229026232,0.18,46481.0,46475.0,0.59958012]
[1641229026430,0.18,46477.0,46475.0,0.59958012]
[1641229026630,0.18,46477.0,46475.0,0.79058012]
[1641229027032,0.18,46482.0,46475.0,0.79058012]
[1641229027332,0.18,46477.0,46475.0,0.79058012]
[1641229027532,0.18,46477.0,46475.0,0.191]
[1641229027934,0.18,46477.0,46474.0,0.59958012]
[1641229028534,0.18,46475.0,46471.0,1.80973897]
[1641229028731,0.24627818,46480.0,46474.0,0.179]
[1641229028931,0.18,46475.0,46474.0,0.179]
[1641229029932,0.18,46475.0,46469.0,0.59958012]
[1641229030738,0.18,46470.0,46469.0,0.78958012]
[1641229031936,0.18,46470.0,46469.0,0.59958012]
[1641229032136,0.37915638,46472.0,46469.0,0.59958012]
[1641229032536,0.18,46470.0,46469.0,0.59958012]
[1641229032738,0.18,46470.0,46469.0,0.185]
[1641229033139,0.37915638,46472.0,46469.0,0.185]
[1641229033536,0.18,46470.0,46469.0,0.185]
[1641229033937,0.18,46470.0,46468.0,0.59958012]
[1641229034737,0.18,46470.0,46468.0,0.78758012]
[1641229036039,0.18,46470.0,46468.0,0.59958012]
[1641229036240,0.18,46470.0,46467.0,0.59958012]
[1641229036440,0.43041105,46468.0,46467.0,0.59958012]
[1641229037241,0.43141105,46468.0,46467.0,0.59958012]
[1641229037441,0.57074672,46468.0,46467.0,0.1698602]
[1641229037639,0.57074672,46468.0,46466.0,0.84058689]
[1641229037840,0.18,46467.0,46466.0,0.84058689]
[1641229038039,0.18,46467.0,46463.0,0.60731997]
[1641229038238,0.18,46464.0,46463.0,0.60731997]
[1641229038440,0.2706,46464.0,46463.0,0.60731997]
[1641229038639,0.7007027,46464.0,46463.0,0.015]
[1641229039240,0.7007027,46464.0,46460.0,1.21015885]
[1641229039541,0.77542583,46461.0,46453.0,1.46042529]
[1641229039841,0.18,46458.0,46455.0,1.21482077]
[1641229040642,0.349,46458.0,46455.0,0.175]
[1641229041043,0.169,46458.0,46455.0,0.175]
[1641229041841,0.169,46458.0,46456.0,0.86391033]
[1641229042042,0.14033567,46461.0,46456.0,0.86391033]
[1641229042643,0.30633567,46461.0,46456.0,1.05391033]
[1641229043343,0.30633567,46461.0,46456.0,0.19]
[1641229043944,0.166,46461.0,46457.0,0.88543639]
[1641229044745,0.14033567,46468.0,46457.0,1.08143639]
[1641229045145,0.14033567,46468.0,46458.0,0.87370433]
[1641229046545,0.14033567,46468.0,46459.0,0.86391033]
[1641229047448,0.14033567,46468.0,46460.0,0.86391033]
[1641229047862,0.14033567,46468.0,46460.0,1.71422292]
[1641229048853,0.14033567,46468.0,46461.0,1.47128373]
[1641229049251,0.14033567,46468.0,46461.0,1.55871808]
[1641229049451,0.14409677,46477.0,46466.0,0.28067134]
[1641229049653,0.14409677,46477.0,46467.0,0.009794]
[1641229050253,0.14409677,46477.0,46471.0,0.02151993]
[1641229050453,0.14409677,46477.0,46471.0,0.11361993]
[1641229050855,0.14409677,46481.0,46471.0,0.11361993]
[1641229051356,0.14409677,46481.0,46472.0,0.18]
[1641229051553,0.14409677,46481.0,46474.0,0.14033567]
[1641229052154,0.14033567,46482.0,46474.0,0.14033567]
[1641229052755,0.14033567,46482.0,46474.0,0.32933567]
[1641229053556,0.32033567,46487.0,46475.0,0.009794]
[1641229053757,0.1656167,46488.0,46475.0,0.009794]
[1641229054660,0.1656167,46488.0,46475.0,0.199794]
[1641229055260,0.14409677,46488.0,46477.0,0.02151717]
[1641229055473,0.0201,46490.0,46481.0,0.14033567]
[1641229055474,0.16419677,46490.0,46481.0,0.14033567]
[1641229055872,0.18,46483.0,46481.0,0.14033567]
[1641229056780,0.18,46489.0,46481.0,0.31933567]
[1641229057178,0.18,46484.0,46481.0,0.31933567]
[1641229057581,0.18,46489.0,46481.0,0.31933567]
[1641229057780,0.0201,46490.0,46482.0,0.009794]
[1641229058678,0.0201,46490.0,46482.0,0.202794]
[1641229060181,0.0201,46490.0,46482.0,0.009794]
[1641229060784,0.0201,46490.0,46482.0,0.200794]
[1641229062485,0.0201,46490.0,46482.0,0.009794]
[1641229062885,0.0201,46490.0,46482.0,0.201794]
[1641229064087,0.0201,46490.0,46482.0,0.009794]
[1641229064989,0.0201,46490.0,46482.0,0.199794]
[1641229065190,0.0201,46490.0,46483.0,0.02151444]
[1641229066792,0.0201,46490.0,46483.0,0.20851444]
[1641229067688,0.44703169,46490.0,46483.0,0.20851444]
[1641229068088,0.44703169,46490.0,46483.0,0.02151444]
[1641229068288,0.26703169,46490.0,46483.0,0.02151444]
[1641229068787,0.26703169,46490.0,46483.0,0.20451444]
[1641229068988,0.44703169,46490.0,46483.0,0.20451444]
[1641229069290,0.44703169,46490.0,46483.0,0.183]
[1641229070090,0.44703169,46490.0,46481.0,0.14033567]
[1641229070290,0.53714169,46490.0,46481.0,0.14033567]
[1641229070892,0.53714169,46490.0,46481.0,0.32733567]
[1641229071295,1.20581684,46483.0,46481.0,0.32733567]
[1641229072097,1.20581684,46483.0,46481.0,0.14033567]
[1641229072895,1.20581684,46483.0,46481.0,0.32833567]
[1641229073497,1.20581684,46482.0,46481.0,0.32833567]
[1641229074096,1.20581684,46482.0,46481.0,0.14033567]
[1641229074298,1.38581684,46482.0,46481.0,0.14033567]
[1641229074496,1.20581684,46482.0,46481.0,0.14033567]
[1641229075301,0.32995462,46486.0,46481.0,0.14033567]
[1641229076103,0.14995462,46486.0,46481.0,0.14033567]
[1641229076300,0.18,46485.0,46481.0,0.14033567]
[1641229077303,0.14995462,46486.0,46481.0,0.14033567]
[1641229077499,0.31341814,46484.0,46481.0,0.14033567]
[1641229080205,0.1876114,46479.0,46474.0,0.14033567]
[1641229080407,0.08888,46479.0,46474.0,0.14033567]
[1641229080806,0.08888,46479.0,46474.0,0.32533567]
[1641229082207,0.14033567,46482.0,46474.0,0.14033567]
[1641229083006,0.14033567,46482.0,46474.0,0.32233567]
[1641229084808,0.14033567,46482.0,46474.0,0.32433567]
[1641229085611,0.34601647,46482.0,46474.0,0.32433567]
[1641229086211,0.52601647,46482.0,46474.0,0.14033567]
[1641229086911,0.52601647,46482.0,46474.0,0.30833567]
[1641229087111,0.15996083,46478.0,46474.0,0.30833567]
[1641229087311,0.22466083,46478.0,46474.0,0.30833567]
[1641229087911,0.0647,46478.0,46474.0,0.168]
[1641229088312,0.0647,46478.0,46470.0,0.6073734]
[1641229089013,0.0647,46478.0,46468.0,0.6073734]
[1641229090229,0.14033567,46471.0,46468.0,0.6073734]
[1641229090431,0.14033567,46471.0,46466.0,0.6073734]
[1641229090929,0.14033567,46471.0,46468.0,0.104]
[1641229092229,0.14033567,46471.0,46467.0,0.6073734]
[1641229092929,0.14033567,46471.0,46468.0,0.009794]
[1641229093133,0.3421847,46481.0,46470.0,0.18]
[1641229093330,0.48628147,46481.0,46470.0,0.0215196]
[1641229093529,0.8288512,46481.0,46470.0,0.0215196]
[1641229093729,0.14409677,46481.0,46470.0,0.0215196]
[1641229094331,0.14033567,46482.0,46471.0,1.43477193]
[1641229094931,0.14033567,46482.0,46478.0,0.18]
[1641229095133,0.14033567,46482.0,46478.0,0.273304]
[1641229095531,0.14033567,46482.0,46480.0,0.18]
[1641229096336,0.14033567,46482.0,46478.0,0.093304]
[1641229096533,0.14033567,46482.0,46480.0,0.18]
[1641229096934,0.14033567,46482.0,46478.0,0.280304]
[1641229098134,0.14033567,46482.0,46478.0,0.08351]
[1641229098435,0.14033567,46482.0,46476.0,0.0215175]
[1641229098634,0.14033567,46482.0,46476.0,0.6288909]
[1641229098833,0.14033567,46482.0,46478.0,0.18]
[1641229100337,0.14033567,46482.0,46476.0,0.0215175]
[1641229100836,0.14033567,46482.0,46476.0,0.2085175]
[1641229102839,0.14033567,46482.0,46476.0,0.4005175]
[1641229104241,0.14033567,46482.0,46476.0,0.2135175]
[1641229104441,0.14033567,46482.0,46476.0,0.0215175]
[1641229104841,0.14033567,46482.0,46476.0,0.2135175]
[1641229106239,0.14033567,46482.0,46476.0,0.0215175]
[1641229106840,0.14033567,46482.0,46476.0,0.2135175]
[1641229108242,0.14033567,46482.0,46476.0,0.0215175]
[1641229108844,0.14033567,46482.0,46476.0,0.2135175]
[1641229110145,0.14033567,46482.0,46476.0,0.0215175]
[1641229110947,0.14033567,46482.0,46476.0,0.2125175]
[1641229111246,0.14033567,46482.0,46478.0,0.18]
[1641229111448,0.14033567,46482.0,46478.0,0.27533]
[1641229111847,0.14033567,46482.0,46478.0,0.09533]
[1641229112848,0.14033567,46482.0,46478.0,0.46533]
[1641229114252,0.14033567,46482.0,46478.0,0.27533]
[1641229114552,0.14033567,46482.0,46478.0,0.09533]
[1641229114752,0.14033567,46482.0,46476.0,0.0215175]
[1641229114952,0.14033567,46482.0,46478.0,0.188]
[1641229116157,0.14033567,46482.0,46476.0,0.6288909]
[1641229117058,0.14033567,46482.0,46476.0,0.8178909]
[1641229120162,0.14033567,46482.0,46476.0,0.6288909]
[1641229120563,0.14033567,46487.0,46480.0,0.14033567]
[1641229120761,0.0201,46490.0,46485.0,0.18]
[1641229121160,0.0201,46490.0,46486.0,0.18]
[1641229121761,0.0201,46490.0,46489.0,0.20151164]
[1641229122461,0.0201,46490.0,46489.0,0.20150989]
[1641229122876,0.0201,46490.0,46489.0,0.20650989]
[1641229126164,0.0201,46490.0,46489.0,0.185]
[1641229126364,0.0201,46490.0,46485.0,0.6073734]
[1641229126966,0.0201,46490.0,46485.0,0.193]
[1641229128365,0.0201,46490.0,46484.0,0.6073734]
[1641229128568,0.0201,46490.0,46481.0,0.63868252]
[1641229128966,0.18,46489.0,46484.0,0.19]
[1641229129667,0.001,46485.0,46484.0,0.19]
[1641229130269,0.001,46485.0,46480.0,0.99064826]
[1641229130270,0.001,46485.0,46480.0,0.14033567]
[1641229130479,0.18,46489.0,46480.0,0.14033567]
[1641229130683,0.32033567,46489.0,46480.0,0.14033567]
[1641229130882,0.32033567,46489.0,46480.0,0.32633567]
[1641229132381,0.32033567,46489.0,46480.0,0.14033567]
[1641229132883,0.32033567,46489.0,46480.0,0.32633567]
[1641229134084,0.12143082,46488.0,46480.0,0.32633567]
[1641229134285,0.12143082,46488.0,46480.0,0.14033567]
[1641229134486,0.14033567,46489.0,46480.0,0.15012967]
[1641229134886,0.14033567,46489.0,46480.0,0.33712967]
[1641229135486,0.14033567,46489.0,46481.0,0.02151529]
[1641229136287,1.2127971,46483.0,46481.0,0.02151529]
[1641229136888,1.2127971,46483.0,46481.0,0.21151529]
[1641229137589,1.2127971,46483.0,46482.0,0.20151371]
[1641229138191,1.2127971,46483.0,46482.0,0.02151371]
[1641229138991,1.2127971,46483.0,46482.0,0.20851371]
[1641229139190,1.2127971,46484.0,46482.0,0.20851371]
[1641229140392,1.2127971,46484.0,46482.0,0.02151371]
[1641229140591,1.2127971,46484.0,46480.0,0.15012967]
[1641229140993,1.2127971,46484.0,46482.0,0.187]
[1641229141392,1.2127971,46483.0,46482.0,0.187]
[1641229142392,1.2127971,46483.0,46480.0,0.15012967]
[1641229143093,1.2127971,46483.0,46480.0,0.33912967]
[1641229144194,1.2127971,46483.0,46482.0,0.02151428]
[1641229144394,1.2127971,46483.0,46482.0,0.10329428]
[1641229144997,1.2127971,46483.0,46482.0,0.29529428]
[1641229145397,1.2127971,46483.0,46482.0,0.29629428]
[1641229145696,1.2127971,46483.0,46482.0,0.29529428]
[1641229146199,0.0201,46490.0,46482.0,0.29529428]
[1641229146401,0.0201,46490.0,46482.0,0.10329428]
[1641229146598,1.21277952,46484.0,46482.0,0.10329428]
[1641229146997,1.21277952,46484.0,46482.0,0.29929428]
[1641229147197,0.0201,46490.0,46483.0,0.87088946]
[1641229147397,0.0201,46490.0,46483.0,1.47826286]
[1641229148197,0.0201,46490.0,46483.0,0.6073734]
[1641229149002,0.0201,46490.0,46483.0,0.8003734]
[1641229150299,0.0201,46490.0,46484.0,0.8220111]
[1641229150500,0.0201,46490.0,46484.0,1.4293845]
[1641229151104,0.0201,46490.0,46484.0,1.6223845]
[1641229151504,0.0201,46490.0,46484.0,0.8003734]
[1641229151702,0.0201,46490.0,46484.0,0.193]
[1641229152304,0.0201,46490.0,46483.0,0.6171674]
[1641229153004,0.0201,46490.0,46483.0,0.8091674]
[1641229153406,0.18,46488.0,46483.0,0.8091674]
[1641229153606,0.18,46485.0,46483.0,0.7993734]
[1641229154409,0.18,46485.0,46483.0,0.6073734]
[1641229154809,0.14033567,46484.0,46483.0,0.6073734]
[1641229155008,0.21698567,46484.0,46483.0,0.6073734]
[1641229155211,0.21698567,46484.0,46477.0,0.62889034]
[1641229156511,0.39698567,46484.0,46477.0,0.6073734]
[1641229156708,0.18,46478.0,46477.0,0.6073734]
[1641229157109,0.18,46478.0,46477.0,0.7883734]
[1641229157308,0.18,46478.0,46477.0,0.181]
[1641229158310,0.18,46478.0,46476.0,0.6073734]
[1641229159011,0.18,46478.0,46476.0,0.7913734]
[1641229159411,0.18,46478.0,46476.0,0.184]
[1641229160412,0.18,46478.0,46475.0,0.6073734]
[1641229160911,0.18,46478.0,46474.0,0.6171674]
[1641229161113,0.18,46478.0,46475.0,0.174]
[1641229163112,0.18,46478.0,46475.0,0.343]
[1641229163811,0.18,46477.0,46475.0,0.343]
[1641229164413,0.18,46477.0,46474.0,0.009794]
[1641229165114,0.18,46477.0,46474.0,0.187794]
[1641229166415,0.18,46477.0,46474.0,0.009794]
[1641229167016,0.18,46477.0,46474.0,0.189794]
[1641229167216,0.16185749,46484.0,46474.0,0.189794]
[1641229167415,0.18,46477.0,46474.0,0.189794]
[1641229167615,0.16185749,46484.0,46474.0,0.189794]
[1641229167616,0.34185749,46484.0,46474.0,0.189794]
[1641229167916,0.18,46477.0,46474.0,0.189794]
[1641229169120,0.18,46477.0,46474.0,0.190794]
[1641229170621,0.18,46477.0,46474.0,0.009794]
[1641229171021,0.18,46477.0,46474.0,0.186794]
[1641229172134,0.14033567,46484.0,46474.0,0.186794]
[1641229172340,0.18,46478.0,46474.0,0.186794]
[1641229172534,0.18,46478.0,46474.0,0.009794]
[1641229173234,0.18,46478.0,46474.0,0.190794]
[1641229174734,0.18,46478.0,46474.0,0.009794]
[1641229175137,0.18,46478.0,46474.0,0.192794]
[1641229176437,0.18,46478.0,46474.0,0.009794]
[1641229177037,0.18,46478.0,46474.0,0.7991674]
[1641229177435,0.14033567,46484.0,46474.0,0.7991674]
[1641229177635,0.18,46478.0,46474.0,0.7991674]
[1641229178337,0.18,46478.0,46474.0,0.6171674]
[1641229178636,0.18,46478.0,46474.0,0.009794]
[1641229178836,0.18,46478.0,46473.0,0.6073734]
[1641229179136,0.0001,46480.0,46474.0,0.173]
[1641229179540,0.18,46478.0,46474.0,0.173]
[1641229180439,0.18,46478.0,46472.0,0.6073734]
[1641229181138,0.0001,46480.0,46474.0,0.14033567]
[1641229182144,0.0001,46480.0,46474.0,0.74770907]
[1641229183042,0.0001,46480.0,46474.0,0.93270907]
[1641229184442,0.0001,46480.0,46474.0,0.83061907]
[1641229184644,0.18,46478.0,46474.0,0.83061907]
[1641229185142,0.0001,46480.0,46474.0,1.01461907]
[1641229185944,0.0001,46480.0,46474.0,0.40724567]
[1641229186545,0.0001,46480.0,46474.0,0.22324567]
[1641229186945,0.0001,46480.0,46476.0,0.02151764]
[1641229187345,0.0001,46480.0,46476.0,0.03131164]
[1641229187545,0.0201,46490.0,46479.0,0.001]
[1641229187746,0.0201,46490.0,46483.0,0.20151406]
[1641229189145,0.0201,46490.0,46484.0,0.14033567]
[1641229189345,0.0201,46490.0,46484.0,0.21319567]
[1641229190147,0.0201,46490.0,46484.0,0.82056907]
[1641229191147,0.0201,46490.0,46484.0,1.00556907]
[1641229192447,0.0201,46490.0,46484.0,0.82056907]
[1641229193247,0.0201,46490.0,46484.0,1.00556907]
[1641229194449,0.0201,46490.0,46484.0,0.82056907]
[1641229195250,0.0201,46490.0,46484.0,1.00556907]
[1641229196550,0.0201,46490.0,46484.0,0.82056907]
[1641229197152,0.0201,46490.0,46484.0,1.00556907]
[1641229197753,0.0201,46490.0,46484.0,1.18556907]
[1641229197951,0.0201,46490.0,46484.0,1.00556907]
[1641229198551,0.0201,46490.0,46484.0,0.82056907]
[1641229199253,0.0201,46490.0,46484.0,1.00656907]
[1641229199957,0.0201,46490.0,46485.0,0.86970162]
[1641229200155,0.0201,46490.0,46485.0,1.47707502]
[1641229201157,0.0201,46490.0,46485.0,0.7973734]
[1641229201557,0.18,46486.0,46485.0,0.7973734]
[1641229201856,0.25591,46486.0,46485.0,0.7973734]
[1641229202261,0.25591,46486.0,46485.0,0.19]
[1641229202460,0.25591,46486.0,46484.0,0.74770907]
[1641229202657,0.07591,46486.0,46484.0,0.74770907]
[1641229202857,0.18,46485.0,46484.0,0.74770907]
[1641229203057,0.18,46485.0,46484.0,0.14033567]
[1641229203459,0.18,46485.0,46479.0,0.6073734]
[1641229203657,0.18,46480.0,46479.0,0.6073734]
[1641229204557,0.20152227,46483.0,46479.0,0.6073734]
[1641229204962,0.02152227,46483.0,46476.0,0.6073734]
[1641229205157,0.20452227,46483.0,46476.0,0.6073734]
[1641229205359,0.14033567,46482.0,46476.0,0.6073734]
[1641229205558,0.18,46481.0,46476.0,0.6073734]
[1641229206160,0.18,46480.0,46476.0,0.6073734]
[1641229206561,0.18,46480.0,46474.0,0.14033567]
[1641229207162,0.116,46480.0,46474.0,0.32233567]
[1641229207762,0.296,46480.0,46474.0,0.32233567]
[1641229207961,0.116,46480.0,46474.0,0.32233567]
[1641229208262,0.296,46480.0,46474.0,0.32233567]
[1641229208461,0.18,46480.0,46474.0,0.14033567]
[1641229208663,0.14033567,46482.0,46474.0,0.14033567]
[1641229208862,0.18,46480.0,46474.0,0.14033567]
[1641229209262,0.18,46480.0,46474.0,0.32233567]
[1641229209762,0.18,46478.0,46474.0,0.32233567]
[1641229209964,0.18,46477.0,46474.0,0.32233567]
[1641229210462,0.20152668,46475.0,46472.0,0.6073734]
[1641229210661,0.26501668,46475.0,46472.0,0.6073734]
[1641229210862,0.001,46473.0,46472.0,0.6073734]
[1641229211763,0.001,46473.0,46467.0,0.27763928]
[1641229211964,0.02152754,46472.0,46467.0,0.27763928]
[1641229212768,0.02152754,46472.0,46466.0,0.85031259]
[1641229213066,0.02152754,46472.0,46464.0,0.85979952]
[1641229213268,0.19852754,46472.0,46467.0,0.167]
[1641229214268,0.37852754,46472.0,46467.0,0.167]
[1641229214567,0.02152754,46472.0,46463.0,0.99064826]
[1641229215167,0.02152524,46477.0,46465.0,0.18]
[1641229215371,0.18,46485.0,46465.0,0.18]
[1641229215372,0.05372257,46483.0,46468.0,0.18]
[1641229215670,0.05372257,46483.0,46471.0,0.14033567]
[1641229216267,0.0322,46483.0,46471.0,0.14033567]
[1641229217271,0.0322,46483.0,46471.0,0.32533567]
[1641229217469,0.0322,46483.0,46471.0,0.34685559]
[1641229218071,0.23039337,46480.0,46471.0,0.34685559]
[1641229218269,0.23039337,46480.0,46471.0,0.32533567]
[1641229218471,0.23039337,46480.0,46471.0,0.14033567]
[1641229219173,0.23039337,46480.0,46471.0,0.32533567]
[1641229220571,0.23039337,46480.0,46471.0,0.14033567]
[1641229220773,0.41039337,46480.0,46471.0,0.14033567]
[1641229220972,0.23039337,46480.0,46471.0,0.14033567]
[1641229221172,0.41039337,46480.0,46471.0,0.32433567]
[1641229221672,0.23039337,46480.0,46471.0,0.92672232]
[1641229222475,0.0322,46483.0,46471.0,0.92672232]
[1641229222676,0.0322,46483.0,46471.0,0.82014232]
[1641229223178,0.0322,46483.0,46471.0,1.00414232]
[1641229223575,0.0537224,46483.0,46471.0,1.00414232]
[1641229223775,0.0322,46483.0,46471.0,1.00414232]
[1641229223988,0.0537224,46483.0,46471.0,1.00414232]
[1641229224176,0.0322,46483.0,46471.0,1.00414232]
[1641229224376,0.0322,46483.0,46472.0,1.44680488]
[1641229224976,0.0322,46483.0,46476.0,0.18]
[1641229225178,0.0322,46483.0,46479.0,0.18]
[1641229225376,0.0322,46483.0,46479.0,0.06]
[1641229225575,0.0322,46483.0,46482.0,0.14033567]
[1641229225777,0.0322,46483.0,46482.0,0.19905567]
[1641229227179,0.0322,46483.0,46482.0,0.32233567]
[1641229228581,0.0322,46483.0,46482.0,0.14033567]
[1641229229188,0.1432,46483.0,46482.0,0.32333567]
[1641229229589,0.1432,46483.0,46482.0,0.40682567]
[1641229230692,0.0322,46483.0,46482.0,0.14033567]
[1641229231296,0.1002,46483.0,46482.0,0.32533567]
[1641229232593,0.0322,46483.0,46482.0,0.14033567]
[1641229233294,0.0322,46483.0,46482.0,0.32333567]
[1641229234596,0.0322,46483.0,46482.0,0.14033567]
[1641229235194,0.0322,46483.0,46482.0,0.32233567]
[1641229236602,0.0322,46483.0,46482.0,0.14033567]
[1641229237303,0.1372,46483.0,46482.0,0.32433567]
[1641229238507,0.0322,46483.0,46482.0,0.14033567]
[1641229239306,0.1942,46483.0,46482.0,0.30733567]
[1641229239605,0.1942,46483.0,46482.0,0.30123567]
[1641229240207,0.1942,46483.0,46482.0,0.27913567]
[1641229240408,0.1942,46483.0,46482.0,0.26903567]
[1641229240610,0.0322,46483.0,46473.0,0.16185441]
[1641229241410,0.0322,46483.0,46473.0,0.34685441]
[1641229242014,1.21366683,46474.0,46473.0,0.34685441]
[1641229242609,1.21366683,46474.0,46473.0,0.16185441]
[1641229242815,0.0322,46483.0,46473.0,0.16185441]
[1641229243415,0.0322,46483.0,46473.0,0.52585441]
[1641229243615,0.0322,46483.0,46476.0,0.06]
[1641229243812,0.0322,46483.0,46476.0,0.18]
[1641229244111,0.0322,46483.0,46479.0,0.18]
[1641229244311,0.0201,46490.0,46482.0,0.20151418]
[1641229244711,0.0201,46490.0,46482.0,0.02151418]
[1641229245413,0.0201,46490.0,46482.0,0.20851418]
[1641229245815,0.0201,46490.0,46482.0,0.34884985]
[1641229246613,0.0201,46490.0,46482.0,0.16184985]
[1641229247313,0.0201,46490.0,46482.0,0.34884985]
[1641229248614,0.0201,46490.0,46482.0,0.16184985]
[1641229249313,0.0201,46490.0,46482.0,0.34784985]
[1641229250718,0.0201,46490.0,46482.0,0.16184985]
[1641229251319,0.0201,46490.0,46482.0,0.34584985]
[1641229251518,0.09101,46490.0,46482.0,0.34584985]
[1641229252418,0.27101,46490.0,46482.0,0.32433567]
[1641229252617,0.27101,46490.0,46482.0,0.14033567]
[1641229252819,0.18,46485.0,46482.0,0.14033567]
[1641229253320,0.303,46485.0,46482.0,0.31933567]
[1641229253719,0.123,46485.0,46482.0,0.31933567]
[1641229255122,0.123,46485.0,46482.0,0.14033567]
[1641229255320,0.177,46485.0,46482.0,0.29433567]
[1641229256721,0.18,46486.0,46482.0,0.14033567]
[1641229257321,0.358,46486.0,46482.0,0.29533567]
[1641229258121,0.178,46486.0,46482.0,0.29533567]
[1641229258724,0.16048366,46487.0,46482.0,0.14033567]
[1641229259125,0.29252916,46490.0,46482.0,0.14033567]
[1641229259324,0.149,46487.0,46482.0,0.29433567]
[1641229260727,0.22161916,46490.0,46482.0,0.14033567]
[1641229260928,0.04161916,46490.0,46482.0,0.14033567]
[1641229261129,0.18,46487.0,46482.0,0.14033567]
[1641229261328,0.4913961,46487.0,46482.0,0.30433567]
[1641229262029,0.4313961,46487.0,46482.0,0.30433567]
[1641229262230,0.3113961,46487.0,46482.0,0.30433567]
[1641229262628,0.4913961,46487.0,46482.0,0.30433567]
[1641229262830,0.4913961,46487.0,46482.0,0.14033567]
[1641229263229,0.3113961,46487.0,46482.0,0.14033567]
[1641229263432,0.4833961,46487.0,46482.0,0.25133567]
[1641229264732,0.3113961,46487.0,46482.0,0.14033567]
[1641229265131,0.22161916,46490.0,46482.0,0.14033567]
[1641229265334,0.168,46487.0,46482.0,0.39681567]
[1641229266532,0.0201,46490.0,46482.0,0.22481567]
[1641229266933,0.22366652,46488.0,46482.0,0.22481567]
[1641229267136,0.18,46487.0,46482.0,0.22481567]
[1641229267336,0.18,46487.0,46482.0,0.31233567]
[1641229268638,0.18,46483.0,46475.0,0.60238665]
[1641229268840,0.18,46480.0,46475.0,0.60238665]
[1641229269040,0.18,46476.0,46475.0,0.60238665]
[1641229269255,0.27385,46476.0,46475.0,0.60238665]
[1641229269453,0.09385,46476.0,46475.0,0.74938665]
[1641229270253,0.14033567,46478.0,46475.0,0.74938665]
[1641229270455,0.14033567,46478.0,46475.0,0.147]
[1641229270656,0.14033567,46478.0,46471.0,0.60238665]
[1641229271257,0.14033567,46478.0,46469.0,0.85031259]
[1641229271258,0.14033567,46478.0,46470.0,0.60238665]
[1641229271462,0.28633567,46478.0,46471.0,0.357]
[1641229271657,0.28633567,46478.0,46471.0,0.24562]
[1641229271861,0.28633567,46478.0,46472.0,0.18]
[1641229272259,0.28633567,46478.0,46471.0,0.24562]
[1641229272457,0.28633567,46478.0,46472.0,0.18]
[1641229272858,0.14033567,46478.0,46472.0,0.18]
[1641229273059,0.14033567,46478.0,46471.0,0.67100665]
[1641229273657,0.14033567,46478.0,46472.0,0.183]
[1641229274259,0.14033567,46478.0,46472.0,1.55609307]
[1641229274963,0.14033567,46478.0,46472.0,0.78538665]
[1641229275559,0.14033567,46478.0,46472.0,0.78238665]
[1641229275759,0.17263567,46478.0,46472.0,0.78238665]
[1641229276161,0.17263567,46478.0,46474.0,0.18]
[1641229276660,0.17263567,46478.0,46472.0,0.78238665]
[1641229277061,0.17263567,46478.0,46473.0,0.18]
[1641229278359,0.0323,46478.0,46472.0,0.78238665]
[1641229278761,0.0323,46478.0,46472.0,0.60238665]
[1641229279461,0.0323,46478.0,46472.0,0.78238665]
[1641229280762,0.0323,46478.0,46472.0,0.60238665]
[1641229281562,0.0323,46478.0,46472.0,0.78338665]
[1641229282564,0.0323,46478.0,46472.0,0.96338665]
[1641229282767,0.0323,46478.0,46472.0,0.78238665]
[1641229282963,0.0323,46478.0,46472.0,0.18]
[1641229283564,0.0323,46478.0,46472.0,0.361]
[1641229283763,0.0323,46478.0,46472.0,0.44181]
[1641229283963,1.21376948,46473.0,46472.0,0.44181]
[1641229284863,1.21376948,46473.0,46472.0,0.26081]
[1641229285571,1.21376948,46473.0,46472.0,0.44281]
[1641229287772,1.21376948,46473.0,46472.0,0.26281]
[1641229288072,1.21376948,46473.0,46472.0,0.182]
[1641229288473,0.32923176,46478.0,46472.0,0.362]
[1641229288875,0.32923176,46478.0,46472.0,0.18]
[1641229289476,0.32923176,46478.0,46472.0,0.361]
[1641229289676,0.32923176,46478.0,46472.0,0.181]
[1641229290777,0.32923176,46478.0,46471.0,0.20151968]
[1641229291577,0.43032169,46477.0,46471.0,0.20351968]
[1641229291976,0.43032169,46477.0,46471.0,0.182]
[1641229292980,0.43032169,46477.0,46470.0,0.009794]
[1641229293680,0.43032169,46477.0,46470.0,0.191794]
[1641229293881,1.213889,46471.0,46470.0,0.191794]
[1641229294981,1.213889,46471.0,46470.0,0.009794]
[1641229295281,1.213889,46471.0,46470.0,0.189794]
[1641229295581,1.213889,46471.0,46470.0,0.361]
[1641229295783,1.213889,46471.0,46470.0,0.20252041]
[1641229296182,1.213889,46471.0,46470.0,0.38252041]
[1641229296783,1.213889,46471.0,46470.0,0.20252041]
[1641229297481,1.213889,46471.0,46470.0,0.02152041]
[1641229297682,1.213889,46471.0,46470.0,0.20252041]
[1641229297882,1.213889,46471.0,46470.0,0.181]
[1641229298885,1.213889,46471.0,46468.0,0.74272232]
[1641229299389,0.43039162,46470.0,46468.0,0.60238665]
[1641229299586,0.43039162,46470.0,46468.0,0.78138665]
[1641229299786,0.43039162,46470.0,46459.0,0.8367202]
[1641229299989,0.02153034,46466.0,46458.0,1.9189]